[Event "Titled Tuesday Blitz December 20 Early 2022"]
[White "Aradhya, Garg"]
[Black "stollenmonster"]
[WhiteFideId "25006746"]
[WhiteElo "2284"]
[BlackElo "2932"]
[Result "0-1"]
[Round "06"]
[TimeControl "180+2"]
[Date "2022.12.20"]
[WhiteClock "0:00:16"]
[BlackClock "0:00:29"]

1. d4 {[%clk 0:03:00]}  Nf6 {[%clk 0:02:59]} 2. c4 {[%clk 0:03:01]}  e6 {[%clk 0:02:59]} 3. Nc3 {[%clk 0:03:00]}  d5 {[%clk 0:03:00]} 4. cxd5 {[%clk 0:03:00]}  Nxd5 {[%clk 0:03:00]} 5. e4 {[%clk 0:03:00]}  Nxc3 {[%clk 0:03:00]} 6. bxc3 {[%clk 0:03:01]}  b6 {[%clk 0:03:00]} 7. Qg4 {[%clk 0:02:56]}  Bb7 {[%clk 0:02:58]} 8. Nf3 {[%clk 0:02:56]}  Nd7 {[%clk 0:02:57]} 9. Bd3 {[%clk 0:02:51]}  a6 {[%clk 0:02:47]} 10. Bg5 {[%clk 0:02:49]}  Nf6 {[%clk 0:02:46]} 11. Qf4 {[%clk 0:02:49]}  h6 {[%clk 0:02:45]} 12. Bxf6 {[%clk 0:02:49]}  gxf6 {[%clk 0:02:44]} 13. O-O {[%clk 0:02:24]}  Rg8 {[%clk 0:02:40]} 14. g3 {[%clk 0:02:24]}  h5 {[%clk 0:02:38]} 15. Rfe1 {[%clk 0:02:14]}  Rg4 {[%clk 0:02:34]} 16. Qe3 {[%clk 0:02:13]}  Qd7 {[%clk 0:02:32]} 17. a4 {[%clk 0:02:01]}  Be7 {[%clk 0:02:25]} 18. Qh6 {[%clk 0:01:48]}  O-O-O {[%clk 0:02:21]} 19. Qxh5 {[%clk 0:01:46]}  Rg7 {[%clk 0:02:21]} 20. a5 {[%clk 0:01:40]}  b5 {[%clk 0:02:21]} 21. c4 {[%clk 0:01:40]}  bxc4 {[%clk 0:02:08]} 22. Bxc4 {[%clk 0:01:41]}  f5 {[%clk 0:02:09]} 23. exf5 {[%clk 0:01:20]}  Qc6 {[%clk 0:02:08]} 24. Be2 {[%clk 0:01:19]}  Bf6 {[%clk 0:01:56]} 25. fxe6 {[%clk 0:01:03]}  fxe6 {[%clk 0:01:57]} 26. Rac1 {[%clk 0:00:58]}  Qd5 {[%clk 0:01:48]} 27. Qxd5 {[%clk 0:00:57]}  Rxd5 {[%clk 0:01:49]} 28. Rc5 {[%clk 0:00:56]}  Rd6 {[%clk 0:01:34]} 29. Ne5 {[%clk 0:00:40]}  Rxd4 {[%clk 0:01:25]} 30. Bc4 {[%clk 0:00:38]}  Rd6 {[%clk 0:01:00]} 31. Bb3 {[%clk 0:00:28]}  Bd5 {[%clk 0:00:53]} 32. Bxd5 {[%clk 0:00:27]}  Rxd5 {[%clk 0:00:54]} 33. Rxd5 {[%clk 0:00:27]}  exd5 {[%clk 0:00:55]} 34. Nc6 {[%clk 0:00:21]}  Bc3 {[%clk 0:00:49]} 35. Rc1 {[%clk 0:00:20]}  d4 {[%clk 0:00:49]} 36. Rd1 {[%clk 0:00:20]}  Rd7 {[%clk 0:00:44]} 37. Kf1 {[%clk 0:00:20]}  Kb7 {[%clk 0:00:44]} 38. Ne5 {[%clk 0:00:18]}  Rd5 {[%clk 0:00:44]} 39. Rb1+ {[%clk 0:00:18]}  Kc8 {[%clk 0:00:44]} 40. Nc6 {[%clk 0:00:19]}  Rc5 {[%clk 0:00:44]} 41. Na7+ {[%clk 0:00:18]}  Kd7 {[%clk 0:00:43]} 42. Ke2 {[%clk 0:00:18]}  Bxa5 {[%clk 0:00:41]} 43. Rb7 {[%clk 0:00:18]}  Bb6 {[%clk 0:00:40]} 44. Kd3 {[%clk 0:00:18]}  Rh5 {[%clk 0:00:34]} 45. h4 {[%clk 0:00:18]}  Rh8 {[%clk 0:00:35]} 46. f4 {[%clk 0:00:14]}  Ra8 {[%clk 0:00:35]} 47. h5 {[%clk 0:00:14]}  Bxa7 {[%clk 0:00:36]} 48. h6 {[%clk 0:00:13]}  Bb6 {[%clk 0:00:35]} 49. h7 {[%clk 0:00:08]}  Rh8 {[%clk 0:00:29]} 50. g4 {[%clk 0:00:06]}  Kc8 {[%clk 0:00:29]} 51. g5 {[%clk 0:00:06]}  Rxh7 {[%clk 0:00:28]} 52. g6 {[%clk 0:00:06]}  Rh3+ {[%clk 0:00:27]} 53. Ke4 {[%clk 0:00:07]}  Kxb7 {[%clk 0:00:27]} 54. f5 {[%clk 0:00:07]}  Rg3 {[%clk 0:00:25]} 55. Kf4 {[%clk 0:00:06]}  Rg1 {[%clk 0:00:25]} 56. Ke4 {[%clk 0:00:06]}  Bc5 {[%clk 0:00:24]} 57. Kd5 {[%clk 0:00:05]}  Be7 {[%clk 0:00:23]} 58. Ke6 {[%clk 0:00:05]}  Bh4 {[%clk 0:00:21]} 59. Kf7 {[%clk 0:00:05]}  d3 {[%clk 0:00:22]} 60. g7 {[%clk 0:00:05]}  Rxg7+ {[%clk 0:00:21]} 61. Kxg7 {[%clk 0:00:06]}  d2 {[%clk 0:00:21]} 62. f6 {[%clk 0:00:07]}  Bxf6+ {[%clk 0:00:22]} 63. Kxf6 {[%clk 0:00:07]}  d1=Q {[%clk 0:00:22]} 64. Ke5 {[%clk 0:00:08]}  c5 {[%clk 0:00:23]} 65. Kf5 {[%clk 0:00:09]}  c4 {[%clk 0:00:23]} 66. Ke4 {[%clk 0:00:10]}  c3 {[%clk 0:00:24]} 67. Ke3 {[%clk 0:00:10]}  c2 {[%clk 0:00:25]} 68. Ke4 {[%clk 0:00:11]}  c1=Q {[%clk 0:00:26]} 69. Ke5 {[%clk 0:00:11]}  a5 {[%clk 0:00:27]} 70. Kf5 {[%clk 0:00:12]}  a4 {[%clk 0:00:28]} 71. Ke4 {[%clk 0:00:12]}  a3 {[%clk 0:00:29]} 72. Ke5 {[%clk 0:00:13]}  a2 {[%clk 0:00:29]} 73. Kf5 {[%clk 0:00:14]}  a1=Q {[%clk 0:00:29]} 74. Ke4 {[%clk 0:00:15]}  Qe2+ {[%clk 0:00:28]} 75. Kf5 {[%clk 0:00:16]}  Qc5+ {[%clk 0:00:29]} 76. Kf4 {[%clk 0:00:16]}  Qf6+ {[%clk 0:00:29]} 77. Kg3 {[%clk 0:00:16]}  Qef3+ {[%clk 0:00:29]} 78. Kh2 {[%clk 0:00:16]}  Qh4# {[%clk 0:00:29]} 0-1


[Site "https://www.chess.com"]

[Event "Titled Tuesday Blitz December 20 Early 2022"]
[White "Artem_0degov"]
[Black "Lion-Al-Messi"]
[WhiteElo "2661"]
[BlackElo "2520"]
[Result "1-0"]
[Round "06"]
[TimeControl "180+2"]
[Date "2022.12.20"]
[WhiteClock "0:00:08"]
[BlackClock "0:00:07"]

1. d4 {[%clk 0:02:57]}  Nf6 {[%clk 0:02:59]} 2. c4 {[%clk 0:02:55]}  g6 {[%clk 0:02:59]} 3. Nc3 {[%clk 0:02:54]}  d5 {[%clk 0:02:59]} 4. cxd5 {[%clk 0:02:55]}  Nxd5 {[%clk 0:03:00]} 5. e4 {[%clk 0:02:56]}  Nxc3 {[%clk 0:03:00]} 6. bxc3 {[%clk 0:02:56]}  Bg7 {[%clk 0:03:00]} 7. Bc4 {[%clk 0:02:57]}  c5 {[%clk 0:03:00]} 8. Ne2 {[%clk 0:02:58]}  O-O {[%clk 0:03:00]} 9. O-O {[%clk 0:02:58]}  Nc6 {[%clk 0:03:01]} 10. Be3 {[%clk 0:02:58]}  b6 {[%clk 0:03:01]} 11. dxc5 {[%clk 0:02:57]}  Qc7 {[%clk 0:02:54]} 12. Nd4 {[%clk 0:02:57]}  Ne5 {[%clk 0:02:54]} 13. Nb5 {[%clk 0:02:56]}  Qb8 {[%clk 0:02:54]} 14. Be2 {[%clk 0:02:56]}  bxc5 {[%clk 0:02:52]} 15. Rb1 {[%clk 0:02:55]}  a6 {[%clk 0:02:46]} 16. Nd4 {[%clk 0:02:54]}  Qc7 {[%clk 0:02:46]} 17. Nb3 {[%clk 0:02:55]}  c4 {[%clk 0:02:43]} 18. Nd4 {[%clk 0:02:54]}  h5 {[%clk 0:02:30]} 19. h3 {[%clk 0:02:52]}  Bd7 {[%clk 0:02:29]} 20. f4 {[%clk 0:02:49]}  Nc6 {[%clk 0:02:25]} 21. e5 {[%clk 0:02:34]}  Rad8 {[%clk 0:02:12]} 22. Qc1 {[%clk 0:02:14]}  h4 {[%clk 0:02:02]} 23. Qa3 {[%clk 0:02:11]}  Nxd4 {[%clk 0:02:00]} 24. Bxd4 {[%clk 0:02:12]}  Bc6 {[%clk 0:02:00]} 25. Bf3 {[%clk 0:02:07]}  Bxf3 {[%clk 0:01:58]} 26. Rxf3 {[%clk 0:02:08]}  Qc6 {[%clk 0:01:52]} 27. Rb6 {[%clk 0:01:57]}  Qe4 {[%clk 0:01:49]} 28. Qxa6 {[%clk 0:01:53]}  Bh6 {[%clk 0:01:41]} 29. f5 {[%clk 0:01:31]}  Rxd4 {[%clk 0:01:28]} 30. cxd4 {[%clk 0:00:55]}  Qxd4+ {[%clk 0:01:29]} 31. Kh1 {[%clk 0:00:32]}  Qa1+ {[%clk 0:01:29]} 32. Kh2 {[%clk 0:00:32]}  Qxe5+ {[%clk 0:01:29]} 33. Kh1 {[%clk 0:00:31]}  Qe1+ {[%clk 0:00:59]} 34. Kh2 {[%clk 0:00:29]}  Rd8 {[%clk 0:01:00]} 35. Qb5 {[%clk 0:00:04]}  Bf4+ {[%clk 0:00:24]} 36. Rxf4 {[%clk 0:00:01]}  Qg3+ {[%clk 0:00:24]} 37. Kg1 {[%clk 0:00:02]}  Qxf4 {[%clk 0:00:12]} 38. Qb1 {[%clk 0:00:02]}  Qe3+ {[%clk 0:00:09]} 39. Kh2 {[%clk 0:00:02]}  Qe5+ {[%clk 0:00:09]} 40. Kh1 {[%clk 0:00:02]}  Qe2 {[%clk 0:00:09]} 41. Rb8 {[%clk 0:00:01]}  Rxb8 {[%clk 0:00:09]} 42. Qxb8+ {[%clk 0:00:02]}  Kg7 {[%clk 0:00:10]} 43. Qb1 {[%clk 0:00:01]}  gxf5 {[%clk 0:00:09]} 44. Qxf5 {[%clk 0:00:02]}  Qe1+ {[%clk 0:00:09]} 45. Kh2 {[%clk 0:00:03]}  Qg3+ {[%clk 0:00:10]} 46. Kh1 {[%clk 0:00:03]}  e6 {[%clk 0:00:09]} 47. Qc5 {[%clk 0:00:03]}  c3 {[%clk 0:00:10]} 48. a4 {[%clk 0:00:03]}  Qe1+ {[%clk 0:00:09]} 49. Kh2 {[%clk 0:00:03]}  Qg3+ {[%clk 0:00:10]} 50. Kh1 {[%clk 0:00:04]}  Qd3 {[%clk 0:00:10]} 51. a5 {[%clk 0:00:04]}  c2 {[%clk 0:00:09]} 52. Qg5+ {[%clk 0:00:04]}  Kf8 {[%clk 0:00:09]} 53. Qc5+ {[%clk 0:00:04]}  Ke8 {[%clk 0:00:09]} 54. Qc8+ {[%clk 0:00:04]}  Ke7 {[%clk 0:00:09]} 55. Qc7+ {[%clk 0:00:05]}  Kf6 {[%clk 0:00:09]} 56. Qf4+ {[%clk 0:00:05]}  Qf5 {[%clk 0:00:10]} 57. Qd4+ {[%clk 0:00:04]}  Kg6 {[%clk 0:00:08]} 58. Qc4 {[%clk 0:00:02]}  Qf2 {[%clk 0:00:03]} 59. Qd3+ {[%clk 0:00:02]}  Kf6 {[%clk 0:00:03]} 60. Qc3+ {[%clk 0:00:02]}  Kf5 {[%clk 0:00:03]} 61. Qd3+ {[%clk 0:00:02]}  Ke5 {[%clk 0:00:04]} 62. Qc3+ {[%clk 0:00:03]}  Ke4 {[%clk 0:00:04]} 63. Qc4+ {[%clk 0:00:03]}  Ke3 {[%clk 0:00:05]} 64. Qc5+ {[%clk 0:00:03]}  Ke2 {[%clk 0:00:04]} 65. Qxc2+ {[%clk 0:00:04]}  Kf1 {[%clk 0:00:04]} 66. Qxf2+ {[%clk 0:00:05]}  Kxf2 {[%clk 0:00:04]} 67. a6 {[%clk 0:00:06]}  e5 {[%clk 0:00:04]} 68. a7 {[%clk 0:00:07]}  e4 {[%clk 0:00:05]} 69. a8=Q {[%clk 0:00:08]}  e3 {[%clk 0:00:05]} 70. Qf3+ {[%clk 0:00:08]}  Ke1 {[%clk 0:00:06]} 71. Qxe3+ {[%clk 0:00:08]}  Kf1 {[%clk 0:00:07]} 72. Qf4+ {[%clk 0:00:08]}  Ke2 {[%clk 0:00:07]} 73. Qxf7 {[%clk 0:00:08]} 1-0


[Site "https://www.chess.com"]

[Event "Titled Tuesday Blitz December 20 Early 2022"]
[White "AttractiveChess"]
[Black "Fera, Aryanti"]
[BlackFideId "7118988"]
[WhiteElo "2784"]
[BlackElo "1770"]
[Result "0-1"]
[Round "06"]
[TimeControl "180+2"]
[Date "2022.12.20"]
[WhiteClock "0:00:28"]
[BlackClock "0:00:03"]

1. Nf3 {[%clk 0:02:55]}  c5 {[%clk 0:02:54]} 2. c4 {[%clk 0:02:55]}  Nc6 {[%clk 0:02:52]} 3. b3 {[%clk 0:02:55]}  e5 {[%clk 0:02:42]} 4. Bb2 {[%clk 0:02:56]}  e4 {[%clk 0:02:42]} 5. Ng1 {[%clk 0:02:56]}  Nf6 {[%clk 0:02:38]} 6. Nc3 {[%clk 0:02:56]}  Bd6 {[%clk 0:02:19]} 7. Qb1 {[%clk 0:02:56]}  Be5 {[%clk 0:02:19]} 8. e3 {[%clk 0:02:56]}  O-O {[%clk 0:02:18]} 9. Nge2 {[%clk 0:02:56]}  Re8 {[%clk 0:02:12]} 10. Ng3 {[%clk 0:02:56]}  h5 {[%clk 0:02:11]} 11. d3 {[%clk 0:02:11]}  Qa5 {[%clk 0:01:34]} 12. Qc1 {[%clk 0:02:07]}  d5 {[%clk 0:01:28]} 13. cxd5 {[%clk 0:01:46]}  Nxd5 {[%clk 0:01:29]} 14. Nxe4 {[%clk 0:01:46]}  f5 {[%clk 0:01:29]} 15. Kd1 {[%clk 0:01:46]}  fxe4 {[%clk 0:01:11]} 16. Nxd5 {[%clk 0:01:46]}  Bg4+ {[%clk 0:01:11]} 17. Be2 {[%clk 0:01:46]}  Bxe2+ {[%clk 0:01:02]} 18. Kxe2 {[%clk 0:01:47]}  exd3+ {[%clk 0:00:41]} 19. Kf1 {[%clk 0:01:47]}  Bxb2 {[%clk 0:00:26]} 20. Qxb2 {[%clk 0:01:48]}  Rad8 {[%clk 0:00:26]} 21. Nf4 {[%clk 0:01:48]}  d2 {[%clk 0:00:24]} 22. Rd1 {[%clk 0:01:48]}  Qa6+ {[%clk 0:00:24]} 23. Kg1 {[%clk 0:01:48]}  Ne5 {[%clk 0:00:22]} 24. Rxd2 {[%clk 0:01:44]}  g5 {[%clk 0:00:14]} 25. Nd5 {[%clk 0:01:32]}  Nd3 {[%clk 0:00:14]} 26. Nf6+ {[%clk 0:01:21]}  Kf7 {[%clk 0:00:14]} 27. Qb1 {[%clk 0:01:21]}  Kxf6 {[%clk 0:00:10]} 28. h3 {[%clk 0:01:20]}  Qd6 {[%clk 0:00:08]} 29. g4 {[%clk 0:01:17]}  h4 {[%clk 0:00:07]} 30. Qa1+ {[%clk 0:01:15]}  Qe5 {[%clk 0:00:07]} 31. Qb1 {[%clk 0:01:15]}  Nb4 {[%clk 0:00:07]} 32. Rxd8 {[%clk 0:01:13]}  Rxd8 {[%clk 0:00:07]} 33. Qh7 {[%clk 0:01:09]}  Rd1+ {[%clk 0:00:06]} 34. Kg2 {[%clk 0:01:10]}  Rxh1 {[%clk 0:00:04]} 35. Kxh1 {[%clk 0:01:10]}  Qd5+ {[%clk 0:00:03]} 36. Kg1 {[%clk 0:01:10]}  Qd1+ {[%clk 0:00:03]} 37. Kg2 {[%clk 0:01:11]}  Qd5+ {[%clk 0:00:03]} 38. Kg1 {[%clk 0:01:11]}  Ke6 {[%clk 0:00:03]} 39. Qc7 {[%clk 0:01:07]}  Nd3 {[%clk 0:00:03]} 40. Qc8+ {[%clk 0:01:07]}  Kd6 {[%clk 0:00:03]} 41. Qb8+ {[%clk 0:01:03]}  Kc6 {[%clk 0:00:04]} 42. Qxa7 {[%clk 0:01:04]}  Ne5 {[%clk 0:00:03]} 43. Qa4+ {[%clk 0:01:02]}  Kc7 {[%clk 0:00:04]} 44. Qa5+ {[%clk 0:01:03]}  Kb8 {[%clk 0:00:04]} 45. Qc3 {[%clk 0:00:58]}  Nf3+ {[%clk 0:00:04]} 46. Kf1 {[%clk 0:00:59]}  Nd2+ {[%clk 0:00:02]} 47. Kg1 {[%clk 0:00:55]}  Ne4 {[%clk 0:00:03]} 48. Qh8+ {[%clk 0:00:53]}  Ka7 {[%clk 0:00:03]} 49. Qb2 {[%clk 0:00:54]}  Qd2 {[%clk 0:00:03]} 50. Qxd2 {[%clk 0:00:51]}  Nxd2 {[%clk 0:00:04]} 51. f4 {[%clk 0:00:52]}  b5 {[%clk 0:00:04]} 52. Kf2 {[%clk 0:00:50]}  c4 {[%clk 0:00:04]} 53. Ke2 {[%clk 0:00:48]}  Ne4 {[%clk 0:00:04]} 54. Kf3 {[%clk 0:00:28]}  c3 {[%clk 0:00:03]} 0-1


[Site "https://www.chess.com"]

[Event "Titled Tuesday Blitz December 20 Early 2022"]
[White "AvitalBor"]
[Black "Toh, Terry"]
[BlackFideId "5800323"]
[WhiteElo "2816"]
[BlackElo "2394"]
[Result "1-0"]
[Round "06"]
[TimeControl "180+2"]
[Date "2022.12.20"]
[WhiteClock "0:00:28"]
[BlackClock "0:00:33"]

1. d4 {[%clk 0:03:00]}  Nf6 {[%clk 0:02:59]} 2. Nc3 {[%clk 0:03:00]}  d5 {[%clk 0:02:59]} 3. Bf4 {[%clk 0:03:01]}  c5 {[%clk 0:02:58]} 4. e3 {[%clk 0:02:56]}  cxd4 {[%clk 0:02:57]} 5. Nb5 {[%clk 0:02:53]}  Qa5+ {[%clk 0:02:50]} 6. c3 {[%clk 0:02:29]}  Na6 {[%clk 0:02:36]} 7. exd4 {[%clk 0:02:26]}  Bd7 {[%clk 0:02:34]} 8. a4 {[%clk 0:02:24]}  g6 {[%clk 0:02:32]} 9. Nf3 {[%clk 0:02:22]}  Bg7 {[%clk 0:02:32]} 10. Ne5 {[%clk 0:02:18]}  O-O {[%clk 0:02:32]} 11. Be2 {[%clk 0:02:17]}  Be6 {[%clk 0:02:28]} 12. O-O {[%clk 0:02:12]}  Qd8 {[%clk 0:02:25]} 13. a5 {[%clk 0:02:07]}  Nb8 {[%clk 0:02:25]} 14. h3 {[%clk 0:02:02]}  Nbd7 {[%clk 0:02:24]} 15. a6 {[%clk 0:01:59]}  bxa6 {[%clk 0:02:24]} 16. Nc6 {[%clk 0:01:53]}  Qb6 {[%clk 0:02:18]} 17. Nxe7+ {[%clk 0:01:49]}  Kh8 {[%clk 0:02:18]} 18. Nc7 {[%clk 0:01:49]}  Rab8 {[%clk 0:02:07]} 19. Rxa6 {[%clk 0:01:46]}  Qxb2 {[%clk 0:02:06]} 20. Nxe6 {[%clk 0:01:13]}  fxe6 {[%clk 0:02:06]} 21. Bxb8 {[%clk 0:01:13]}  Nxb8 {[%clk 0:02:01]} 22. Rxe6 {[%clk 0:01:11]}  Ne4 {[%clk 0:01:59]} 23. Nxd5 {[%clk 0:01:05]}  Nxc3 {[%clk 0:01:37]} 24. Nxc3 {[%clk 0:01:04]}  Qxc3 {[%clk 0:01:38]} 25. d5 {[%clk 0:01:02]}  Nd7 {[%clk 0:01:37]} 26. Re7 {[%clk 0:00:54]}  Nc5 {[%clk 0:01:26]} 27. d6 {[%clk 0:00:50]}  Bd4 {[%clk 0:01:12]} 28. d7 {[%clk 0:00:41]}  Rxf2 {[%clk 0:00:39]} 29. Rxf2 {[%clk 0:00:30]}  Bxf2+ {[%clk 0:00:37]} 30. Kxf2 {[%clk 0:00:29]}  Qf6+ {[%clk 0:00:36]} 31. Kg1 {[%clk 0:00:28]}  Qxe7 {[%clk 0:00:33]} 32. d8=Q+ {[%clk 0:00:28]}  Qxd8 {[%clk 0:00:33]} 33. Qxd8+ {[%clk 0:00:28]} 1-0


[Site "https://www.chess.com"]

[Event "Titled Tuesday Blitz December 20 Early 2022"]
[White "Balasch Peries, Eduard"]
[Black "Jacomet Rodriguez, Josep-M."]
[WhiteFideId "32067372"]
[BlackFideId "54509815"]
[WhiteElo "1671"]
[BlackElo "3034"]
[Result "0-1"]
[Round "06"]
[TimeControl "180+2"]
[Date "2022.12.20"]
[WhiteClock "0:00:01"]
[BlackClock "0:02:00"]

1. d4 {[%clk 0:03:00]}  Nf6 {[%clk 0:03:00]} 2. c4 {[%clk 0:03:01]}  e6 {[%clk 0:03:00]} 3. Nc3 {[%clk 0:03:00]}  Bb4 {[%clk 0:03:01]} 4. e3 {[%clk 0:03:01]}  O-O {[%clk 0:03:01]} 5. Bd3 {[%clk 0:03:01]}  d5 {[%clk 0:03:02]} 6. Ne2 {[%clk 0:02:59]}  dxc4 {[%clk 0:03:01]} 7. Bxc4 {[%clk 0:02:59]}  c5 {[%clk 0:03:02]} 8. a3 {[%clk 0:02:59]}  Bxc3+ {[%clk 0:03:00]} 9. Nxc3 {[%clk 0:03:00]}  cxd4 {[%clk 0:02:59]} 10. exd4 {[%clk 0:03:00]}  Nc6 {[%clk 0:03:00]} 11. Be3 {[%clk 0:02:59]}  b6 {[%clk 0:03:00]} 12. O-O {[%clk 0:02:52]}  Bb7 {[%clk 0:03:00]} 13. Bd3 {[%clk 0:02:51]}  h6 {[%clk 0:02:53]} 14. Bc2 {[%clk 0:02:51]}  Rc8 {[%clk 0:02:51]} 15. Qd3 {[%clk 0:02:50]}  Ne7 {[%clk 0:02:49]} 16. Bf4 {[%clk 0:02:44]}  Ng6 {[%clk 0:02:48]} 17. Bg3 {[%clk 0:02:32]}  Nh5 {[%clk 0:02:47]} 18. Rad1 {[%clk 0:02:29]}  Bxg2 {[%clk 0:02:46]} 19. Rfe1 {[%clk 0:02:22]}  Bb7 {[%clk 0:02:39]} 20. Re5 {[%clk 0:02:20]}  Nf6 {[%clk 0:02:33]} 21. Ree1 {[%clk 0:02:16]}  Re8 {[%clk 0:02:32]} 22. Bb3 {[%clk 0:01:53]}  Nd5 {[%clk 0:02:25]} 23. Nb5 {[%clk 0:01:48]}  Ndf4 {[%clk 0:02:23]} 24. Bxf4 {[%clk 0:01:20]}  Nxf4 {[%clk 0:02:24]} 25. Qg3 {[%clk 0:01:20]}  Nh5 {[%clk 0:02:23]} 26. Qg4 {[%clk 0:01:14]}  a6 {[%clk 0:02:22]} 27. Qxh5 {[%clk 0:01:07]}  axb5 {[%clk 0:02:20]} 28. Qxb5 {[%clk 0:01:03]}  Qh4 {[%clk 0:02:17]} 29. Re3 {[%clk 0:00:54]}  Qg4+ {[%clk 0:02:17]} 30. Rg3 {[%clk 0:00:53]}  Qe4 {[%clk 0:02:13]} 31. d5 {[%clk 0:00:35]}  exd5 {[%clk 0:02:07]} 32. Bxd5 {[%clk 0:00:11]}  Qf5 {[%clk 0:02:05]} 33. Qd3 {[%clk 0:00:05]}  Qxd3 {[%clk 0:02:03]} 34. Rdxd3 {[%clk 0:00:06]}  Ba6 {[%clk 0:02:03]} 35. Rd1 {[%clk 0:00:03]}  Rcd8 {[%clk 0:02:04]} 36. b4 {[%clk 0:00:01]}  Bc4 {[%clk 0:02:00]} 0-1


[Site "https://www.chess.com"]

[Event "Titled Tuesday Blitz December 20 Early 2022"]
[White "Ball, John D L"]
[Black "Willychess95"]
[WhiteFideId "402150"]
[WhiteElo "2230"]
[BlackElo "2661"]
[Result "0-1"]
[Round "06"]
[TimeControl "180+2"]
[Date "2022.12.20"]
[WhiteClock "0:00:04"]
[BlackClock "0:00:09"]

1. e4 {[%clk 0:03:00]}  c5 {[%clk 0:02:59]} 2. Nf3 {[%clk 0:03:00]}  d6 {[%clk 0:02:58]} 3. Nc3 {[%clk 0:03:01]}  Nf6 {[%clk 0:02:56]} 4. d4 {[%clk 0:03:01]}  cxd4 {[%clk 0:02:56]} 5. Qxd4 {[%clk 0:03:02]}  a6 {[%clk 0:02:55]} 6. e5 {[%clk 0:03:02]}  Nc6 {[%clk 0:02:55]} 7. Qa4 {[%clk 0:03:02]}  dxe5 {[%clk 0:02:52]} 8. Nxe5 {[%clk 0:03:03]}  Bd7 {[%clk 0:02:53]} 9. Nxd7 {[%clk 0:03:03]}  Qxd7 {[%clk 0:02:53]} 10. Be3 {[%clk 0:03:04]}  e6 {[%clk 0:02:51]} 11. Rd1 {[%clk 0:03:04]}  Qc8 {[%clk 0:02:45]} 12. g3 {[%clk 0:03:04]}  Bb4 {[%clk 0:02:42]} 13. Bg2 {[%clk 0:03:04]}  O-O {[%clk 0:02:38]} 14. O-O {[%clk 0:03:04]}  Bxc3 {[%clk 0:02:12]} 15. bxc3 {[%clk 0:03:05]}  Rd8 {[%clk 0:02:11]} 16. c4 {[%clk 0:02:14]}  Qc7 {[%clk 0:01:51]} 17. Bf4 {[%clk 0:02:06]}  e5 {[%clk 0:01:45]} 18. Bg5 {[%clk 0:02:07]}  Rd6 {[%clk 0:01:23]} 19. c5 {[%clk 0:01:59]}  Rdd8 {[%clk 0:01:17]} 20. c3 {[%clk 0:01:53]}  Rxd1 {[%clk 0:00:52]} 21. Rxd1 {[%clk 0:01:54]}  Rd8 {[%clk 0:00:52]} 22. Rxd8+ {[%clk 0:01:50]}  Nxd8 {[%clk 0:00:52]} 23. Qc4 {[%clk 0:01:37]}  h6 {[%clk 0:00:43]} 24. Bxf6 {[%clk 0:01:31]}  gxf6 {[%clk 0:00:43]} 25. Qg4+ {[%clk 0:01:15]}  Kf8 {[%clk 0:00:42]} 26. Qh4 {[%clk 0:01:14]}  Kg7 {[%clk 0:00:40]} 27. Qg4+ {[%clk 0:01:14]}  Kf8 {[%clk 0:00:40]} 28. Qh4 {[%clk 0:00:47]}  Kg7 {[%clk 0:00:40]} 29. Be4 {[%clk 0:00:32]}  Qxc5 {[%clk 0:00:30]} 30. Qg4+ {[%clk 0:00:32]}  Kf8 {[%clk 0:00:30]} 31. Qh4 {[%clk 0:00:25]}  Ke7 {[%clk 0:00:29]} 32. Qxh6 {[%clk 0:00:25]}  Qxc3 {[%clk 0:00:29]} 33. Kg2 {[%clk 0:00:16]}  Ne6 {[%clk 0:00:26]} 34. h4 {[%clk 0:00:15]}  b5 {[%clk 0:00:25]} 35. h5 {[%clk 0:00:15]}  Ng5 {[%clk 0:00:24]} 36. Bb7 {[%clk 0:00:11]}  Qc7 {[%clk 0:00:23]} 37. Bf3 {[%clk 0:00:10]}  e4 {[%clk 0:00:22]} 38. Bg4 {[%clk 0:00:10]}  Qc2 {[%clk 0:00:20]} 39. Kg1 {[%clk 0:00:06]}  Qc1+ {[%clk 0:00:19]} 40. Kg2 {[%clk 0:00:06]}  Qd2 {[%clk 0:00:19]} 41. Qh8 {[%clk 0:00:03]}  e3 {[%clk 0:00:17]} 42. Qb8 {[%clk 0:00:03]}  Qxf2+ {[%clk 0:00:16]} 43. Kh1 {[%clk 0:00:04]}  Qe1+ {[%clk 0:00:11]} 44. Kg2 {[%clk 0:00:04]}  Qf2+ {[%clk 0:00:12]} 45. Kh1 {[%clk 0:00:04]}  e2 {[%clk 0:00:12]} 46. Qc7+ {[%clk 0:00:04]}  Kf8 {[%clk 0:00:12]} 47. Bxe2 {[%clk 0:00:04]}  Qe1+ {[%clk 0:00:11]} 48. Kg2 {[%clk 0:00:04]}  Qxe2+ {[%clk 0:00:12]} 49. Kh1 {[%clk 0:00:04]}  Nf3 {[%clk 0:00:11]} 50. g4 {[%clk 0:00:04]}  Qf1# {[%clk 0:00:09]} 0-1


[Site "https://www.chess.com"]

[Event "Titled Tuesday Blitz December 20 Early 2022"]
[White "Battlecruiser_Operational"]
[Black "Dela Cruz, Noel"]
[BlackFideId "5207649"]
[WhiteElo "2428"]
[BlackElo "2241"]
[Result "0-1"]
[Round "06"]
[TimeControl "180+2"]
[Date "2022.12.20"]
[WhiteClock "0:00:02"]
[BlackClock "0:00:51"]

1. d4 {[%clk 0:02:59]}  f5 {[%clk 0:03:00]} 2. g3 {[%clk 0:02:54]}  Nf6 {[%clk 0:03:00]} 3. Bg2 {[%clk 0:02:54]}  g6 {[%clk 0:03:00]} 4. Nh3 {[%clk 0:02:50]}  Bg7 {[%clk 0:03:01]} 5. c3 {[%clk 0:02:44]}  Nc6 {[%clk 0:02:56]} 6. O-O {[%clk 0:02:39]}  O-O {[%clk 0:02:55]} 7. a4 {[%clk 0:02:39]}  d6 {[%clk 0:02:52]} 8. a5 {[%clk 0:02:37]}  a6 {[%clk 0:02:52]} 9. Qb3+ {[%clk 0:02:33]}  Kh8 {[%clk 0:02:51]} 10. Ng5 {[%clk 0:02:28]}  d5 {[%clk 0:02:42]} 11. Bf4 {[%clk 0:02:08]}  Ne4 {[%clk 0:02:36]} 12. f3 {[%clk 0:01:54]}  Nxg5 {[%clk 0:02:26]} 13. Bxg5 {[%clk 0:01:55]}  h6 {[%clk 0:02:26]} 14. Bd2 {[%clk 0:01:55]}  e5 {[%clk 0:02:25]} 15. dxe5 {[%clk 0:01:31]}  Nxe5 {[%clk 0:02:24]} 16. Be3 {[%clk 0:01:24]}  c6 {[%clk 0:02:13]} 17. Nd2 {[%clk 0:01:13]}  Qe7 {[%clk 0:02:12]} 18. Bf2 {[%clk 0:00:34]}  Be6 {[%clk 0:02:09]} 19. Qa3 {[%clk 0:00:19]}  Qd7 {[%clk 0:02:07]} 20. Bc5 {[%clk 0:00:19]}  Rf7 {[%clk 0:02:04]} 21. Rad1 {[%clk 0:00:19]}  Re8 {[%clk 0:02:04]} 22. e4 {[%clk 0:00:19]}  f4 {[%clk 0:02:02]} 23. Bd4 {[%clk 0:00:13]}  Kh7 {[%clk 0:01:53]} 24. g4 {[%clk 0:00:11]}  g5 {[%clk 0:01:46]} 25. h3 {[%clk 0:00:11]}  Qc7 {[%clk 0:01:40]} 26. Rfe1 {[%clk 0:00:11]}  Rfe7 {[%clk 0:01:32]} 27. exd5 {[%clk 0:00:10]}  Bxd5 {[%clk 0:01:32]} 28. Ne4 {[%clk 0:00:09]}  Nc4 {[%clk 0:01:27]} 29. Qc5 {[%clk 0:00:06]}  Qxa5 {[%clk 0:01:12]} 30. Qxa5 {[%clk 0:00:05]}  Nxa5 {[%clk 0:01:12]} 31. Bxg7 {[%clk 0:00:05]}  Kxg7 {[%clk 0:01:12]} 32. Rd4 {[%clk 0:00:03]}  Nb3 {[%clk 0:01:09]} 33. Rdd1 {[%clk 0:00:02]}  Bxe4 {[%clk 0:01:09]} 34. fxe4 {[%clk 0:00:02]}  Nc5 {[%clk 0:01:10]} 35. e5 {[%clk 0:00:01]}  Rxe5 {[%clk 0:01:09]} 36. Rxe5 {[%clk 0:00:02]}  Rxe5 {[%clk 0:01:10]} 37. b4 {[%clk 0:00:02]}  Na4 {[%clk 0:01:00]} 38. Rd7+ {[%clk 0:00:03]}  Kf6 {[%clk 0:01:01]} 39. Rxb7 {[%clk 0:00:03]}  Nxc3 {[%clk 0:01:01]} 40. Bxc6 {[%clk 0:00:03]}  Re1+ {[%clk 0:01:00]} 41. Kf2 {[%clk 0:00:03]}  Re2+ {[%clk 0:00:57]} 42. Kf1 {[%clk 0:00:03]}  Re3 {[%clk 0:00:53]} 43. Rb6 {[%clk 0:00:01]}  Ke5 {[%clk 0:00:53]} 44. Bg2 {[%clk 0:00:01]}  f3 {[%clk 0:00:51]} 45. Kf2 {[%clk 0:00:01]}  fxg2 {[%clk 0:00:51]} 46. Kxe3 {[%clk 0:00:01]}  g1=Q+ {[%clk 0:00:52]} 47. Kd3 {[%clk 0:00:02]}  Qxb6 {[%clk 0:00:51]} 0-1


[Site "https://www.chess.com"]